[Event "Late-Titled-Tuesday-Blitz-September-19-2023"]
[Site "Chess.com"]
[Date "2023.09.19"]
[Round "3"]
[White "kaanadayhamle"]
[Black "RichardLeyvaP"]
[Result "1-0"]
[WhiteElo "2449"]
[BlackElo "2582"]
[TimeControl "180+1"]
[EndTime "14:27:31 PDT"]
[Termination "kaanadayhamle won by resignation"]

1. Nf3 {[%clk 0:03:00.9]} 1... Nf6 {[%clk 0:02:57.2]} 2. g3 {[%clk 0:03:01]}
2... g6 {[%clk 0:02:57]} 3. Bg2 {[%clk 0:03:01.2]} 3... Bg7 {[%clk 0:02:57.2]}
4. O-O {[%clk 0:03:02.1]} 4... O-O {[%clk 0:02:57.5]} 5. c4 {[%clk 0:03:03]}
5... d6 {[%clk 0:02:57.8]} 6. Nc3 {[%clk 0:03:02.8]} 6... c6 {[%clk 0:02:58.3]}
7. b4 {[%clk 0:03:03.2]} 7... Ne4 {[%clk 0:02:57.2]} 8. Bb2 {[%clk 0:03:03.4]}
8... Nxc3 {[%clk 0:02:57.2]} 9. Bxc3 {[%clk 0:03:04.3]} 9... Bxc3 {[%clk
0:02:56.8]} 10. dxc3 {[%clk 0:03:05.2]} 10... Nd7 {[%clk 0:02:56.9]} 11. Qd2
{[%clk 0:03:05.3]} 11... Kg7 {[%clk 0:02:55.6]} 12. Qd4+ {[%clk 0:03:05]} 12...
Nf6 {[%clk 0:02:44.8]} 13. Rad1 {[%clk 0:02:57.4]} 13... Qc7 {[%clk 0:02:44.7]}
14. Rfe1 {[%clk 0:02:56.5]} 14... Rd8 {[%clk 0:02:40.1]} 15. e4 {[%clk
0:02:56.1]} 15... Bg4 {[%clk 0:02:32.5]} 16. h3 {[%clk 0:02:50.4]} 16... c5
{[%clk 0:02:27.1]} 17. bxc5 {[%clk 0:02:40]} 17... dxc5 {[%clk 0:02:26.5]} 18.
Qe3 {[%clk 0:02:40.9]} 18... Bxf3 {[%clk 0:02:19.7]} 19. Bxf3 {[%clk 0:02:41.8]}
19... e5 {[%clk 0:02:19.9]} 20. g4 {[%clk 0:02:36.3]} 20... h6 {[%clk
0:02:14.1]} 21. h4 {[%clk 0:02:32.6]} 21... b6 {[%clk 0:02:14.4]} 22. g5 {[%clk
0:02:32.8]} 22... hxg5 {[%clk 0:02:14.8]} 23. hxg5 {[%clk 0:02:33.7]} 23... Nh7
{[%clk 0:02:15.1]} 24. Rd5 {[%clk 0:02:33.1]} 24... Qe7 {[%clk 0:02:12.8]} 25.
Bg2 {[%clk 0:02:27.3]} 25... Nxg5 {[%clk 0:02:09.1]} 26. f4 {[%clk 0:02:26.4]}
26... exf4 {[%clk 0:02:07.2]} 27. Qxf4 {[%clk 0:02:27.3]} 27... Ne6 {[%clk
0:01:43.4]} 28. Qe5+ {[%clk 0:02:21.2]} 28... Qf6 {[%clk 0:01:40.8]} 29. Qxf6+
{[%clk 0:02:07.8]} 29... Kxf6 {[%clk 0:01:41.7]} 30. e5+ {[%clk 0:01:56.5]}
30... Ke7 {[%clk 0:01:41.8]} 31. Rd6 {[%clk 0:01:52.3]} 31... Rab8 {[%clk
0:01:38.1]} 32. Red1 {[%clk 0:01:52.7]} 32... Rxd6 {[%clk 0:01:26.6]} 33. exd6+
{[%clk 0:01:53.6]} 33... Kd7 {[%clk 0:01:26.6]} 34. Bh3 {[%clk 0:01:52.6]} 34...
Rh8 {[%clk 0:01:26.7]} 35. Kg2 {[%clk 0:01:51.1]} 35... f5 {[%clk 0:01:24.9]}
36. Kg3 {[%clk 0:01:44.8]} 36... Nf4 {[%clk 0:01:11.9]} 37. Bxf5+ {[%clk
0:01:27.4]} 37... gxf5 {[%clk 0:01:11.8]} 38. Kxf4 {[%clk 0:01:28.3]} 38... Rh4+
{[%clk 0:01:12]} 39. Ke5 {[%clk 0:01:22.2]} 39... Rxc4 {[%clk 0:01:12.9]} 40.
Rg1 {[%clk 0:01:22.3]} 40... Re4+ {[%clk 0:01:12.7]} 41. Kxf5 {[%clk 0:01:22.6]}
41... Re2 {[%clk 0:01:11.7]} 42. Rg7+ {[%clk 0:01:14.3]} 42... Kxd6 {[%clk
0:01:12]} 43. Rxa7 {[%clk 0:01:15.2]} 43... Rc2 {[%clk 0:01:08.7]} 44. Ra3
{[%clk 0:01:11.3]} 44... Kd5 {[%clk 0:01:09]} 45. Rb3 {[%clk 0:01:07.5]} 45...
Kc6 {[%clk 0:01:08.7]} 46. Ra3 {[%clk 0:01:04.4]} 46... Kb5 {[%clk 0:01:07.4]}
47. Rb3+ {[%clk 0:01:04.5]} 47... Ka6 {[%clk 0:01:07.4]} 48. Ra3+ {[%clk
0:01:04.7]} 48... Kb5 {[%clk 0:01:07.9]} 49. Rb3+ {[%clk 0:01:04.8]} 49... Kc6
{[%clk 0:01:07.8]} 50. Ra3 {[%clk 0:01:04.1]} 50... Re2 {[%clk 0:01:04.6]} 51.
Kf4 {[%clk 0:01:02.3]} 51... b5 {[%clk 0:01:01.4]} 52. Kf3 {[%clk 0:01:02.1]}
52... Re8 {[%clk 0:01:01.2]} 53. Ra5 {[%clk 0:00:58.5]} 53... Kb6 {[%clk
0:00:42.3]} 54. Ra3 {[%clk 0:00:57.3]} 54... c4 {[%clk 0:00:36.5]} 55. Kf2
{[%clk 0:00:57.6]} 55... Rd8 {[%clk 0:00:29.1]} 56. Ke2 {[%clk 0:00:57]} 56...
Rd3 {[%clk 0:00:30]} 57. Ke1 {[%clk 0:00:53.2]} 57... Kc5 {[%clk 0:00:30.3]} 58.
Ke2 {[%clk 0:00:49.9]} 58... Kd5 {[%clk 0:00:20.5]} 59. Ra5 {[%clk 0:00:49.3]}
59... Rxc3 {[%clk 0:00:20.4]} 60. Rxb5+ {[%clk 0:00:49.5]} 60... Kd4 {[%clk
0:00:21]} 61. Kd2 {[%clk 0:00:49.7]} 61... Rh3 {[%clk 0:00:19.9]} 62. a4 {[%clk
0:00:40.6]} 62... Rh2+ {[%clk 0:00:20.1]} 63. Kc1 {[%clk 0:00:39.6]} 63... Ra2
{[%clk 0:00:20.1]} 64. a5 {[%clk 0:00:39.2]} 64... Kc3 {[%clk 0:00:20.2]} 65.
Kb1 {[%clk 0:00:39.5]} 65... Ra4 {[%clk 0:00:19.8]} 66. Rh5 {[%clk 0:00:37.5]}
66... Kb3 {[%clk 0:00:19.1]} 67. Rb5+ {[%clk 0:00:36.6]} 67... Kc3 {[%clk
0:00:19.6]} 68. Rh5 {[%clk 0:00:36.7]} 68... Ra3 {[%clk 0:00:20]} 69. Rh3+
{[%clk 0:00:36.4]} 69... Kb4 {[%clk 0:00:20.4]} 70. Rxa3 {[%clk 0:00:37]} 70...
Kxa3 {[%clk 0:00:20.2]} 71. a6 {[%clk 0:00:37.9]} 1-0

[Event "Late-Titled-Tuesday-Blitz-September-19-2023"]
[Site "Chess.com"]
[Date "2023.09.19"]
[Round "3"]
[White "ElDivis"]
[Black "JesseFebruary"]
[Result "1-0"]
[WhiteElo "2507"]
[BlackElo "2021"]
[TimeControl "180+1"]
[EndTime "14:27:32 PDT"]
[Termination "ElDivis won on time"]

1. Nf3 {[%clk 0:03:00.7]} 1... d5 {[%clk 0:02:58.3]} 2. d4 {[%clk 0:03:00.4]}
2... Nf6 {[%clk 0:02:57.3]} 3. c4 {[%clk 0:02:59.6]} 3... e6 {[%clk 0:02:57.5]}
4. e3 {[%clk 0:02:59.9]} 4... Be7 {[%clk 0:02:57]} 5. Nc3 {[%clk 0:02:58.8]}
5... O-O {[%clk 0:02:57.1]} 6. b3 {[%clk 0:02:59.3]} 6... c5 {[%clk 0:02:49.8]}
7. cxd5 {[%clk 0:02:58.3]} 7... exd5 {[%clk 0:02:44.5]} 8. Be2 {[%clk 0:02:52]}
8... Nc6 {[%clk 0:02:41.9]} 9. dxc5 {[%clk 0:02:47.4]} 9... Bxc5 {[%clk
0:02:40.6]} 10. O-O {[%clk 0:02:47.2]} 10... Bg4 {[%clk 0:02:40.5]} 11. Bb2
{[%clk 0:02:42.5]} 11... Qd7 {[%clk 0:02:31.1]} 12. Rc1 {[%clk 0:02:37]} 12...
Be7 {[%clk 0:02:29.6]} 13. Nb5 {[%clk 0:02:29.7]} 13... Rfd8 {[%clk 0:02:22.5]}
14. Ne5 {[%clk 0:02:10.9]} 14... Nxe5 {[%clk 0:02:16.4]} 15. Bxe5 {[%clk
0:02:11.8]} 15... Bxe2 {[%clk 0:02:14.4]} 16. Qxe2 {[%clk 0:02:12.7]} 16... a6
{[%clk 0:02:07.2]} 17. Rc7 {[%clk 0:01:45.9]} 17... Qe6 {[%clk 0:01:48.5]} 18.
Bxf6 {[%clk 0:01:37.9]} 18... Bxf6 {[%clk 0:01:45.1]} 19. Na3 {[%clk 0:01:08.3]}
19... Qd6 {[%clk 0:01:37.9]} 20. Rxb7 {[%clk 0:01:07.1]} 20... Qxa3 {[%clk
0:01:37.9]} 21. h4 {[%clk 0:01:04.2]} 21... Qd6 {[%clk 0:01:22.5]} 22. Rc1
{[%clk 0:00:59.6]} 22... Rd7 {[%clk 0:01:13.3]} 23. Rxd7 {[%clk 0:00:50.2]}
23... Qxd7 {[%clk 0:01:14.2]} 24. h5 {[%clk 0:00:49.8]} 24... h6 {[%clk
0:01:10.2]} 25. Qd3 {[%clk 0:00:47.3]} 25... Be5 {[%clk 0:01:00.1]} 26. Rc5
{[%clk 0:00:44.6]} 26... Rc8 {[%clk 0:00:54.7]} 27. Rxc8+ {[%clk 0:00:33.3]}
27... Qxc8 {[%clk 0:00:55.6]} 28. f4 {[%clk 0:00:33.4]} 28... Qc1+ {[%clk
0:00:48.8]} 29. Kf2 {[%clk 0:00:28.3]} 29... Qb2+ {[%clk 0:00:34]} 30. Kf3
{[%clk 0:00:28.2]} 30... Bf6 {[%clk 0:00:20.9]} 31. Qxa6 {[%clk 0:00:21.3]}
31... Qc2 {[%clk 0:00:15.9]} 32. Qa8+ {[%clk 0:00:17.6]} 32... Kh7 {[%clk
0:00:15.8]} 33. Qxd5 {[%clk 0:00:18.3]} 33... Qxa2 {[%clk 0:00:13.5]} 34. Qxf7
{[%clk 0:00:09.6]} 34... Qc2 {[%clk 0:00:11.4]} 35. g4 {[%clk 0:00:06]} 35...
Qd1+ {[%clk 0:00:10.8]} 36. Kg3 {[%clk 0:00:04.8]} 36... Qe1+ {[%clk 0:00:10.5]}
37. Kf3 {[%clk 0:00:05.3]} 37... Qh1+ {[%clk 0:00:10.2]} 38. Ke2 {[%clk
0:00:05.3]} 38... Qg2+ {[%clk 0:00:09.5]} 39. Kd3 {[%clk 0:00:03.5]} 39... Qf1+
{[%clk 0:00:09.6]} 40. Ke4 {[%clk 0:00:02.7]} 40... Qb1+ {[%clk 0:00:09.3]} 41.
Kf3 {[%clk 0:00:03.1]} 41... Qf1+ {[%clk 0:00:08]} 42. Ke4 {[%clk 0:00:03.5]}
42... Qb1+ {[%clk 0:00:06.3]} 43. Kf3 {[%clk 0:00:03.8]} 43... Bh4 {[%clk
0:00:03.7]} 44. Qf5+ {[%clk 0:00:03.2]} 44... Qxf5 {[%clk 0:00:02.9]} 45. gxf5
{[%clk 0:00:04.1]} 45... Kg8 {[%clk 0:00:03.3]} 46. Ke4 {[%clk 0:00:04.4]} 46...
Kf7 {[%clk 0:00:03.4]} 47. Kd5 {[%clk 0:00:04.6]} 47... Bd8 {[%clk 0:00:03.4]}
48. e4 {[%clk 0:00:04.8]} 48... Kf6 {[%clk 0:00:03.5]} 49. b4 {[%clk 0:00:04.7]}
1-0

[Event "Late-Titled-Tuesday-Blitz-September-19-2023"]
[Site "Chess.com"]
[Date "2023.09.19"]
[Round "3"]
[White "Dubs123"]
[Black "Cipy77"]
[Result "0-1"]
[WhiteElo "2302"]
[BlackElo "2498"]
[TimeControl "180+1"]
[EndTime "14:27:36 PDT"]
[Termination "Cipy77 won on time"]

1. d4 {[%clk 0:03:00.9]} 1... Nf6 {[%clk 0:02:56.4]} 2. c4 {[%clk 0:02:57.3]}
2... c5 {[%clk 0:02:56.4]} 3. d5 {[%clk 0:02:57]} 3... b5 {[%clk 0:02:56.5]} 4.
Qc2 {[%clk 0:02:50.5]} 4... d6 {[%clk 0:02:44.8]} 5. e4 {[%clk 0:02:48.1]} 5...
g6 {[%clk 0:02:45.2]} 6. Nf3 {[%clk 0:02:43.1]} 6... Bg7 {[%clk 0:02:44.7]} 7.
cxb5 {[%clk 0:02:42.4]} 7... a6 {[%clk 0:02:42.8]} 8. Nc3 {[%clk 0:02:41.5]}
8... O-O {[%clk 0:02:42.2]} 9. a4 {[%clk 0:02:38.8]} 9... axb5 {[%clk
0:02:36.7]} 10. Bxb5 {[%clk 0:02:38.4]} 10... Na6 {[%clk 0:02:32.7]} 11. O-O
{[%clk 0:02:31]} 11... Nb4 {[%clk 0:02:32.7]} 12. Qe2 {[%clk 0:02:30.2]} 12...
Bg4 {[%clk 0:02:31.2]} 13. Bf4 {[%clk 0:02:13.9]} 13... Nd7 {[%clk 0:02:27.2]}
14. h3 {[%clk 0:02:08.9]} 14... Bxf3 {[%clk 0:02:26.9]} 15. Qxf3 {[%clk
0:02:09.3]} 15... Ne5 {[%clk 0:02:27.2]} 16. Bxe5 {[%clk 0:02:08.8]} 16... Bxe5
{[%clk 0:02:28.1]} 17. Kh1 {[%clk 0:01:58.4]} 17... Kg7 {[%clk 0:02:26.5]} 18.
Qe2 {[%clk 0:01:57]} 18... e6 {[%clk 0:02:07.7]} 19. f4 {[%clk 0:01:54]} 19...
Bd4 {[%clk 0:02:08.1]} 20. f5 {[%clk 0:01:45.9]} 20... exd5 {[%clk 0:02:06.5]}
21. Nxd5 {[%clk 0:01:45.1]} 21... Nxd5 {[%clk 0:01:56.4]} 22. exd5 {[%clk
0:01:46]} 22... Ra7 {[%clk 0:01:52.9]} 23. Rae1 {[%clk 0:01:40.4]} 23... Qg5
{[%clk 0:01:50]} 24. b3 {[%clk 0:01:33.6]} 24... Be5 {[%clk 0:01:49.8]} 25. Qg4
{[%clk 0:01:24.8]} 25... Qxg4 {[%clk 0:01:18.7]} 26. hxg4 {[%clk 0:01:25.7]}
26... Rh8 {[%clk 0:01:16.5]} 27. Re4 {[%clk 0:00:43.3]} 27... f6 {[%clk
0:01:14.5]} 28. Rf3 {[%clk 0:00:38.7]} 28... Rb8 {[%clk 0:01:11.4]} 29. Re1
{[%clk 0:00:30.8]} 29... Rh8 {[%clk 0:01:01.2]} 30. Rh3 {[%clk 0:00:29.9]} 30...
Rb8 {[%clk 0:01:00]} 31. Rf3 {[%clk 0:00:26.5]} 31... h5 {[%clk 0:00:52.3]} 32.
gxh5 {[%clk 0:00:24.5]} 32... gxh5 {[%clk 0:00:52.2]} 33. Rh3 {[%clk 0:00:23.9]}
33... Rh8 {[%clk 0:00:46.2]} 34. Rg1 {[%clk 0:00:19.8]} 34... h4 {[%clk
0:00:45.3]} 35. Re1 {[%clk 0:00:17.7]} 35... Rh5 {[%clk 0:00:43.6]} 36. Rf3
{[%clk 0:00:16.7]} 36... Kh6 {[%clk 0:00:42.5]} 37. Ref1 {[%clk 0:00:15.3]}
37... Rh7 {[%clk 0:00:42.3]} 38. Kg1 {[%clk 0:00:14]} 38... Bd4+ {[%clk
0:00:41.8]} 39. Kh2 {[%clk 0:00:13.4]} 39... Be5+ {[%clk 0:00:40.5]} 40. Kh3
{[%clk 0:00:13.3]} 40... Rg7 {[%clk 0:00:39.6]} 41. Be8 {[%clk 0:00:10.9]} 41...
Rhg5 {[%clk 0:00:39.5]} 42. Bd7 {[%clk 0:00:07.6]} 42... Rxg2 {[%clk 0:00:38.9]}
43. Rh1 {[%clk 0:00:05.7]} 43... Kh7 {[%clk 0:00:25.4]} 44. Be6 {[%clk
0:00:04.7]} 44... R2g5 {[%clk 0:00:21.7]} 45. a5 {[%clk 0:00:04.8]} 45... Rg3+
{[%clk 0:00:19.3]} 46. Rxg3 {[%clk 0:00:04.4]} 46... Rxg3+ {[%clk 0:00:20.2]}
47. Kxh4 {[%clk 0:00:04.3]} 47... Rxb3 {[%clk 0:00:20.9]} 48. Kg4+ {[%clk
0:00:04.4]} 48... Kg7 {[%clk 0:00:20.7]} 49. Rh3 {[%clk 0:00:02]} 49... Rb1
{[%clk 0:00:18.3]} 50. Ra3 {[%clk 0:00:01.3]} 50... c4 {[%clk 0:00:16.1]} 51.
Kh4 {[%clk 0:00:01.6]} 51... c3 {[%clk 0:00:16.5]} 52. Ra4 {[%clk 0:00:01.7]}
52... c2 {[%clk 0:00:16.4]} 53. Rc4 {[%clk 0:00:01.7]} 53... c1=Q {[%clk
0:00:16.3]} 54. Rc7+ {[%clk 0:00:02]} 54... Qxc7 {[%clk 0:00:15.6]} 0-1

[Event "Late-Titled-Tuesday-Blitz-September-19-2023"]
[Site "Chess.com"]
[Date "2023.09.19"]
[Round "3"]
[White "CSB7"]
[Black "GreatOwl02"]
[Result "1-0"]
[WhiteElo "2705"]
[BlackElo "2446"]
[TimeControl "180+1"]
[EndTime "14:27:37 PDT"]
[Termination "CSB7 won by resignation"]

1. Nf3 {[%clk 0:03:00.9]} 1... d5 {[%clk 0:02:59.5]} 2. c4 {[%clk 0:02:58.8]}
2... dxc4 {[%clk 0:02:58.5]} 3. e3 {[%clk 0:02:57.6]} 3... e6 {[%clk 0:02:57.9]}
4. Bxc4 {[%clk 0:02:57.8]} 4... c5 {[%clk 0:02:58.2]} 5. O-O {[%clk 0:02:57.4]}
5... Nf6 {[%clk 0:02:57.2]} 6. d4 {[%clk 0:02:42]} 6... a6 {[%clk 0:02:56.3]} 7.
a4 {[%clk 0:02:40]} 7... Qc7 {[%clk 0:02:13.7]} 8. Qe2 {[%clk 0:02:36]} 8... Be7
{[%clk 0:02:00.1]} 9. Nc3 {[%clk 0:02:34.8]} 9... Nc6 {[%clk 0:01:58.2]} 10. d5
{[%clk 0:01:58.6]} 10... exd5 {[%clk 0:01:55.2]} 11. Nxd5 {[%clk 0:01:59.5]}
11... Nxd5 {[%clk 0:01:55]} 12. Bxd5 {[%clk 0:02:00.4]} 12... O-O {[%clk
0:01:27.1]} 13. Rd1 {[%clk 0:02:00.2]} 13... Bg4 {[%clk 0:01:20]} 14. h3 {[%clk
0:01:55.6]} 14... Bh5 {[%clk 0:01:19.8]} 15. Bd2 {[%clk 0:01:48.9]} 15... Rad8
{[%clk 0:01:17.6]} 16. Bc3 {[%clk 0:01:45.7]} 16... Rfe8 {[%clk 0:00:58.5]} 17.
Qc4 {[%clk 0:01:39.3]} 17... Bd6 {[%clk 0:00:38.1]} 18. Rac1 {[%clk 0:01:08]}
18... Ne7 {[%clk 0:00:23.2]} 19. Be4 {[%clk 0:01:02.2]} 19... Qb8 {[%clk
0:00:20.2]} 20. a5 {[%clk 0:00:49.3]} 20... b5 {[%clk 0:00:17.4]} 21. axb6
{[%clk 0:00:48.1]} 21... Qxb6 {[%clk 0:00:17.8]} 22. g4 {[%clk 0:00:44.9]} 22...
Bg6 {[%clk 0:00:17.5]} 23. Bxg6 {[%clk 0:00:45.3]} 23... Nxg6 {[%clk 0:00:16.2]}
24. Ng5 {[%clk 0:00:45.2]} 24... Rd7 {[%clk 0:00:15.5]} 25. Rd3 {[%clk
0:00:36.4]} 25... h6 {[%clk 0:00:15.5]} 26. Ne4 {[%clk 0:00:35.4]} 26... Red8
{[%clk 0:00:14.6]} 27. Rcd1 {[%clk 0:00:34.3]} 27... Nf8 {[%clk 0:00:11.7]} 28.
f4 {[%clk 0:00:29.4]} 28... Be7 {[%clk 0:00:10.9]} 29. f5 {[%clk 0:00:24.8]}
29... Qb5 {[%clk 0:00:09.4]} 30. Qxb5 {[%clk 0:00:22.2]} 30... axb5 {[%clk
0:00:10.3]} 31. Rxd7 {[%clk 0:00:21.1]} 31... Rxd7 {[%clk 0:00:11.2]} 32. Ra1
{[%clk 0:00:17.5]} 32... b4 {[%clk 0:00:10.5]} 33. Be5 {[%clk 0:00:18.1]} 33...
Rd5 {[%clk 0:00:09.9]} 34. Bf4 {[%clk 0:00:18.2]} 34... c4 {[%clk 0:00:10.4]}
35. Ra7 {[%clk 0:00:15.9]} 35... Rd7 {[%clk 0:00:09.9]} 36. Ra8 {[%clk
0:00:13.8]} 36... Rd8 {[%clk 0:00:10.4]} 37. Rxd8 {[%clk 0:00:09.2]} 37... Bxd8
{[%clk 0:00:11.3]} 38. Bd6 {[%clk 0:00:09.3]} 38... Ba5 {[%clk 0:00:10.2]} 39.
Kf2 {[%clk 0:00:09.5]} 39... Nd7 {[%clk 0:00:10.6]} 40. Ke2 {[%clk 0:00:09.9]}
40... Nb6 {[%clk 0:00:10]} 41. Bc7 {[%clk 0:00:08.8]} 41... Kf8 {[%clk
0:00:07.7]} 42. Nd2 {[%clk 0:00:06.5]} 42... c3 {[%clk 0:00:07.9]} 43. bxc3
{[%clk 0:00:06.2]} 43... bxc3 {[%clk 0:00:08.8]} 44. Nb3 {[%clk 0:00:06.4]}
44... c2 {[%clk 0:00:06.6]} 45. e4 {[%clk 0:00:04.3]} 45... Ke8 {[%clk
0:00:04.7]} 46. Kd3 {[%clk 0:00:03.6]} 46... Kd7 {[%clk 0:00:05]} 47. Bxb6
{[%clk 0:00:03.4]} 47... Bxb6 {[%clk 0:00:05.9]} 48. Kxc2 {[%clk 0:00:03.8]}
48... Kd6 {[%clk 0:00:06.5]} 49. Kd3 {[%clk 0:00:03.3]} 49... Ke5 {[%clk
0:00:07]} 50. Nd2 {[%clk 0:00:04]} 50... g6 {[%clk 0:00:07]} 51. Nc4+ {[%clk
0:00:04.2]} 51... Kf4 {[%clk 0:00:06.9]} 52. Nxb6 {[%clk 0:00:04.3]} 52... Kg3
{[%clk 0:00:06.1]} 53. fxg6 {[%clk 0:00:04]} 53... fxg6 {[%clk 0:00:06]} 54. e5
{[%clk 0:00:04.5]} 54... Kxh3 {[%clk 0:00:06.7]} 55. e6 {[%clk 0:00:05.3]} 55...
Kxg4 {[%clk 0:00:07.5]} 56. e7 {[%clk 0:00:06.2]} 1-0

[Event "Late-Titled-Tuesday-Blitz-September-19-2023"]
[Site "Chess.com"]
[Date "2023.09.19"]
[Round "3"]
[White "AEMEffi"]
[Black "arminmusovic"]
[Result "0-1"]
[WhiteElo "2323"]
[BlackElo "2526"]
[TimeControl "180+1"]
[EndTime "14:27:37 PDT"]
[Termination "arminmusovic won by resignation"]

1. d4 {[%clk 0:03:00.9]} 1... d5 {[%clk 0:02:59.6]} 2. c4 {[%clk 0:03:00.1]}
2... c5 {[%clk 0:03:00.5]} 3. cxd5 {[%clk 0:02:59.2]} 3... Nf6 {[%clk
0:03:00.2]} 4. Nc3 {[%clk 0:02:52.5]} 4... Nxd5 {[%clk 0:02:59.7]} 5. Nxd5
{[%clk 0:02:48.7]} 5... Qxd5 {[%clk 0:02:59.4]} 6. dxc5 {[%clk 0:02:47.4]} 6...
Qxd1+ {[%clk 0:02:59]} 7. Kxd1 {[%clk 0:02:47.9]} 7... Na6 {[%clk 0:02:58]} 8.
e4 {[%clk 0:02:41.7]} 8... Nxc5 {[%clk 0:02:57.5]} 9. f3 {[%clk 0:02:42.1]} 9...
a6 {[%clk 0:02:57.1]} 10. Be3 {[%clk 0:02:33.6]} 10... e5 {[%clk 0:02:57.2]} 11.
Rc1 {[%clk 0:02:24.5]} 11... Ne6 {[%clk 0:02:43.5]} 12. Bc4 {[%clk 0:02:17.2]}
12... Bd7 {[%clk 0:02:37]} 13. Ne2 {[%clk 0:02:13.3]} 13... Rd8 {[%clk
0:02:31.9]} 14. Ke1 {[%clk 0:01:45]} 14... Be7 {[%clk 0:02:15.7]} 15. Kf2 {[%clk
0:01:43]} 15... O-O {[%clk 0:02:16.1]} 16. Bd5 {[%clk 0:01:39.1]} 16... b5
{[%clk 0:02:03.4]} 17. Rhd1 {[%clk 0:01:26.3]} 17... g6 {[%clk 0:01:51.2]} 18.
Bb7 {[%clk 0:01:20.4]} 18... f5 {[%clk 0:01:45.7]} 19. Bb6 {[%clk 0:01:09.8]}
19... fxe4 {[%clk 0:01:32.1]} 20. Bxd8 {[%clk 0:01:07]} 20... e3+ {[%clk
0:01:31]} 21. Kxe3 {[%clk 0:00:52]} 21... Rxd8 {[%clk 0:01:31.9]} 22. Kf2 {[%clk
0:00:43.7]} 22... Bc5+ {[%clk 0:01:28.3]} 23. Kf1 {[%clk 0:00:39.7]} 23... Kf7
{[%clk 0:01:22.9]} 24. Bd5 {[%clk 0:00:39.2]} 24... Bb6 {[%clk 0:01:17.7]} 25.
Ng3 {[%clk 0:00:32.4]} 25... b4 {[%clk 0:01:15.6]} 26. Ne4 {[%clk 0:00:31.4]}
26... Ke7 {[%clk 0:01:15.5]} 27. Bxe6 {[%clk 0:00:28.8]} 27... Bxe6 {[%clk
0:01:16]} 28. Rxd8 {[%clk 0:00:28.2]} 28... Bxd8 {[%clk 0:01:16.8]} 29. b3
{[%clk 0:00:25.2]} 29... Bd7 {[%clk 0:01:15.6]} 30. Ke2 {[%clk 0:00:22.8]} 30...
Bb5+ {[%clk 0:01:16.1]} 31. Kd2 {[%clk 0:00:23.1]} 31... Bb6 {[%clk 0:01:14.7]}
32. Rc8 {[%clk 0:00:20.9]} 32... Bg1 {[%clk 0:01:11.8]} 33. Rh8 {[%clk
0:00:20.1]} 33... h5 {[%clk 0:01:11.2]} 34. Rh7+ {[%clk 0:00:19.1]} 34... Kf8
{[%clk 0:01:11.5]} 35. h3 {[%clk 0:00:18.3]} 35... Bh2 {[%clk 0:01:06.7]} 36.
Rc7 {[%clk 0:00:17.3]} 36... Bf4+ {[%clk 0:01:06.7]} 37. Kc2 {[%clk 0:00:17.8]}
37... h4 {[%clk 0:01:06.1]} 38. Nd6 {[%clk 0:00:16.7]} 38... Bf1 {[%clk
0:01:05.6]} 39. Rf7+ {[%clk 0:00:15.2]} 39... Kg8 {[%clk 0:01:06.1]} 40. Rf6
{[%clk 0:00:14.6]} 40... Kg7 {[%clk 0:01:05.7]} 41. Ne8+ {[%clk 0:00:14.8]}
41... Kh7 {[%clk 0:01:05.2]} 42. Nd6 {[%clk 0:00:10.1]} 42... Bxg2 {[%clk
0:01:04.3]} 43. Kd1 {[%clk 0:00:09.8]} 43... Bxh3 {[%clk 0:00:57.4]} 44. Ke2
{[%clk 0:00:09.3]} 44... Kg7 {[%clk 0:00:47.7]} 45. Ne4 {[%clk 0:00:08.8]} 45...
Bf5 {[%clk 0:00:46.8]} 46. Rxa6 {[%clk 0:00:09.4]} 46... h3 {[%clk 0:00:46.4]}
47. Ra7+ {[%clk 0:00:08.9]} 47... Kh6 {[%clk 0:00:46.3]} 48. Nf6 {[%clk
0:00:09.1]} 48... g5 {[%clk 0:00:43.8]} 49. Ng8+ {[%clk 0:00:08]} 49... Kg6
{[%clk 0:00:43.3]} 50. Ne7+ {[%clk 0:00:08]} 50... Kf6 {[%clk 0:00:43.2]} 51.
Nxf5 {[%clk 0:00:08.9]} 51... Kxf5 {[%clk 0:00:44.1]} 52. Rh7 {[%clk 0:00:09]}
52... e4 {[%clk 0:00:44.8]} 53. Rxh3 {[%clk 0:00:09]} 53... exf3+ {[%clk
0:00:44.4]} 54. Rxf3 {[%clk 0:00:09.9]} 54... Ke4 {[%clk 0:00:45]} 55. Rf1
{[%clk 0:00:10.3]} 55... g4 {[%clk 0:00:45.3]} 56. Kd1 {[%clk 0:00:10.5]} 56...
g3 {[%clk 0:00:45.6]} 57. Kc2 {[%clk 0:00:11.4]} 57... Be3 {[%clk 0:00:45.3]}
58. Rd1 {[%clk 0:00:11.5]} 58... g2 {[%clk 0:00:45.3]} 59. Re1 {[%clk
0:00:10.9]} 59... Kf3 {[%clk 0:00:45]} 60. Kd3 {[%clk 0:00:11.8]} 60... Bf2
{[%clk 0:00:45.1]} 61. Rd1 {[%clk 0:00:12.2]} 61... Bh4 {[%clk 0:00:39.6]} 62.
Kc4 {[%clk 0:00:12]} 62... Be7 {[%clk 0:00:39.7]} 63. Re1 {[%clk 0:00:11.3]}
63... Kf2 {[%clk 0:00:39.4]} 64. Rd1 {[%clk 0:00:11.1]} 64... g1=Q {[%clk
0:00:39.8]} 65. Rxg1 {[%clk 0:00:11.1]} 65... Kxg1 {[%clk 0:00:40.7]} 66. Kd3
{[%clk 0:00:11.1]} 66... Kf2 {[%clk 0:00:40.9]} 67. Kc2 {[%clk 0:00:12]} 67...
Ke3 {[%clk 0:00:41.5]} 68. Kb2 {[%clk 0:00:12.8]} 68... Kd3 {[%clk 0:00:41.8]}
69. a3 {[%clk 0:00:13.3]} 69... bxa3+ {[%clk 0:00:39.7]} 70. Ka2 {[%clk
0:00:13.7]} 70... Bb4 {[%clk 0:00:40]} 71. Ka1 {[%clk 0:00:12.3]} 71... Kc3
{[%clk 0:00:37.6]} 0-1